[Event "Early-Titled-Tuesday-Blitz-March-05-2024"]
[Site "Chess.com"]
[Date "2024.03.05"]
[Round "5"]
[White "YurasovMat-2012"]
[Black "Sjakkerntobi"]
[Result "1-0"]
[WhiteElo "2615"]
[BlackElo "2466"]
[TimeControl "180+1"]
[EndTime "8:56:21 PST"]
[Termination "YurasovMat-2012 won by resignation"]

1. e4 {[%clk 0:03:00.9]} 1... e6 {[%clk 0:02:59.1]} 2. Nf3 {[%clk 0:02:58.2]}
2... d5 {[%clk 0:02:59.6]} 3. Nc3 {[%clk 0:02:58.5]} 3... d4 {[%clk 0:02:59.8]}
4. Ne2 {[%clk 0:02:56.7]} 4... c5 {[%clk 0:03:00.5]} 5. g3 {[%clk 0:02:54.2]}
5... Nc6 {[%clk 0:03:00.1]} 6. Bg2 {[%clk 0:02:54.2]} 6... a6 {[%clk 0:02:59.1]}
7. O-O {[%clk 0:02:54.3]} 7... g5 {[%clk 0:02:55.9]} 8. d3 {[%clk 0:02:45.2]}
8... g4 {[%clk 0:02:55.6]} 9. Ne1 {[%clk 0:02:44.4]} 9... h5 {[%clk 0:02:55.3]}
10. f3 {[%clk 0:02:43]} 10... gxf3 {[%clk 0:02:51.2]} 11. Nxf3 {[%clk
0:02:43.9]} 11... Bd6 {[%clk 0:02:51]} 12. Nf4 {[%clk 0:02:40.7]} 12... Nf6
{[%clk 0:02:31.9]} 13. Qe2 {[%clk 0:02:38.7]} 13... Ng4 {[%clk 0:02:29.7]} 14.
h3 {[%clk 0:02:33.2]} 14... Nge5 {[%clk 0:02:29.5]} 15. Nxe5 {[%clk 0:02:32.7]}
15... Nxe5 {[%clk 0:02:30.4]} 16. Nxh5 {[%clk 0:02:32.5]} 16... Kd7 {[%clk
0:01:53]} 17. Bf4 {[%clk 0:02:28.7]} 17... Kc7 {[%clk 0:01:39.7]} 18. c3 {[%clk
0:02:20.5]} 18... c4 {[%clk 0:01:05.8]} 19. cxd4 {[%clk 0:02:17.9]} 19... Nxd3
{[%clk 0:01:05.1]} 20. Qc2 {[%clk 0:01:54.3]} 20... b5 {[%clk 0:00:32.3]} 21. e5
{[%clk 0:01:47.3]} 21... Be7 {[%clk 0:00:31.4]} 22. Be3 {[%clk 0:01:36.6]} 22...
Rxh5 {[%clk 0:00:20]} 23. Bxa8 {[%clk 0:01:33.8]} 23... Rxh3 {[%clk 0:00:20.1]}
24. Qg2 {[%clk 0:01:32.8]} 24... Qh8 {[%clk 0:00:13.6]} 25. Rxf7 {[%clk
0:01:31.5]} 1-0

[Event "Early-Titled-Tuesday-Blitz-March-05-2024"]
[Site "Chess.com"]
[Date "2024.03.05"]
[Round "5"]
[White "DeArron_Fox"]
[Black "GMG"]
[Result "0-1"]
[WhiteElo "2507"]
[BlackElo "2724"]
[TimeControl "180+1"]
[EndTime "8:56:22 PST"]
[Termination "GMG won by resignation"]

1. d4 {[%clk 0:03:00.9]} 1... f5 {[%clk 0:02:59.7]} 2. g3 {[%clk 0:03:00.3]}
2... Nf6 {[%clk 0:03:00]} 3. Bg2 {[%clk 0:03:00.9]} 3... e6 {[%clk 0:03:00.6]}
4. Nf3 {[%clk 0:03:01.5]} 4... d5 {[%clk 0:03:01.2]} 5. O-O {[%clk 0:03:02]}
5... Bd6 {[%clk 0:03:01.8]} 6. c4 {[%clk 0:03:00.1]} 6... O-O {[%clk 0:03:02.1]}
7. Nc3 {[%clk 0:02:58.4]} 7... c6 {[%clk 0:03:02]} 8. Bf4 {[%clk 0:02:51.2]}
8... Bxf4 {[%clk 0:03:00.9]} 9. gxf4 {[%clk 0:02:52.1]} 9... Bd7 {[%clk
0:02:56.9]} 10. e3 {[%clk 0:02:47.6]} 10... Be8 {[%clk 0:02:52.8]} 11. Ne5
{[%clk 0:02:48.1]} 11... Nbd7 {[%clk 0:02:51.1]} 12. b4 {[%clk 0:02:45.9]} 12...
Bh5 {[%clk 0:02:48.9]} 13. Bf3 {[%clk 0:02:20.2]} 13... Nxe5 {[%clk 0:02:45.5]}
14. fxe5 {[%clk 0:02:07.9]} 14... Bxf3 {[%clk 0:02:46.4]} 15. Qxf3 {[%clk
0:02:07.9]} 15... Ne4 {[%clk 0:02:47]} 16. Nxe4 {[%clk 0:02:07.6]} 16... fxe4
{[%clk 0:02:46.6]} 17. Qg4 {[%clk 0:02:04.5]} 17... Rf5 {[%clk 0:02:46.7]} 18.
Kh1 {[%clk 0:02:00]} 18... Qf8 {[%clk 0:02:40.9]} 19. b5 {[%clk 0:01:45.1]}
19... Qf7 {[%clk 0:02:33.6]} 20. a4 {[%clk 0:01:11.5]} 20... Rf8 {[%clk
0:02:32.9]} 21. Ra2 {[%clk 0:00:54.7]} 21... h5 {[%clk 0:02:32.2]} 22. Qh4
{[%clk 0:00:45.7]} 22... g5 {[%clk 0:02:31.6]} 23. Qg3 {[%clk 0:00:41.9]} 23...
Kh7 {[%clk 0:02:29.6]} 24. a5 {[%clk 0:00:30.2]} 24... Rf3 {[%clk 0:02:21.5]}
25. Qxg5 {[%clk 0:00:17.4]} 25... Rg8 {[%clk 0:02:20.7]} 26. Qh4 {[%clk
0:00:17.3]} 26... Qg6 {[%clk 0:02:16.8]} 27. Qg3 {[%clk 0:00:04.5]} 27... Rxg3
{[%clk 0:02:13.4]} 28. fxg3 {[%clk 0:00:04.6]} 28... dxc4 {[%clk 0:02:10]} 29.
a6 {[%clk 0:00:03.9]} 29... cxb5 {[%clk 0:02:01.9]} 30. axb7 {[%clk 0:00:03.9]}
30... Rb8 {[%clk 0:02:02.3]} 31. Rxa7 {[%clk 0:00:03.9]} 31... Qg7 {[%clk
0:02:02.6]} 32. Rb1 {[%clk 0:00:03.5]} 32... Rxb7 {[%clk 0:02:02.1]} 33. Ra5
{[%clk 0:00:03.3]} 33... b4 {[%clk 0:02:01.5]} 34. Rc5 {[%clk 0:00:04.2]} 34...
c3 {[%clk 0:02:01.2]} 35. Rc4 {[%clk 0:00:05.1]} 35... Qf7 {[%clk 0:02:00.5]}
36. Kg1 {[%clk 0:00:03]} 36... Qf3 {[%clk 0:01:59.6]} 0-1

[Event "Early-Titled-Tuesday-Blitz-March-05-2024"]
[Site "Chess.com"]
[Date "2024.03.05"]
[Round "5"]
[White "salzikis"]
[Black "JaackCamel"]
[Result "1-0"]
[WhiteElo "2420"]
[BlackElo "2228"]
[TimeControl "180+1"]
[EndTime "8:56:31 PST"]
[Termination "salzikis won by resignation"]

1. e4 {[%clk 0:03:00.9]} 1... e6 {[%clk 0:02:59]} 2. d4 {[%clk 0:03:00.2]} 2...
d5 {[%clk 0:02:58.5]} 3. Nc3 {[%clk 0:03:00.8]} 3... Bb4 {[%clk 0:02:56.5]} 4.
Ne2 {[%clk 0:02:59.1]} 4... dxe4 {[%clk 0:02:55]} 5. a3 {[%clk 0:02:59.4]} 5...
Be7 {[%clk 0:02:52.4]} 6. Nxe4 {[%clk 0:02:58.7]} 6... Nf6 {[%clk 0:02:51.5]} 7.
Nxf6+ {[%clk 0:02:58.2]} 7... Bxf6 {[%clk 0:02:51.1]} 8. Be3 {[%clk 0:02:57.7]}
8... O-O {[%clk 0:02:48.4]} 9. Qd2 {[%clk 0:02:58.2]} 9... Nd7 {[%clk
0:02:45.3]} 10. O-O-O {[%clk 0:02:55.1]} 10... e5 {[%clk 0:02:44.1]} 11. Ng3
{[%clk 0:02:52.5]} 11... exd4 {[%clk 0:02:39.9]} 12. Bxd4 {[%clk 0:02:52.7]}
12... Bxd4 {[%clk 0:02:32.9]} 13. Qxd4 {[%clk 0:02:52.2]} 13... Qf6 {[%clk
0:02:25.4]} 14. Qd2 {[%clk 0:02:40.3]} 14... Ne5 {[%clk 0:02:14.9]} 15. f3
{[%clk 0:02:40]} 15... Be6 {[%clk 0:02:10.1]} 16. Ne4 {[%clk 0:02:40.2]} 16...
Qe7 {[%clk 0:02:06.2]} 17. Qc3 {[%clk 0:02:40.2]} 17... f6 {[%clk 0:01:58.2]}
18. Nc5 {[%clk 0:02:30.3]} 18... Bc8 {[%clk 0:01:51.9]} 19. f4 {[%clk
0:02:26.8]} 19... Ng4 {[%clk 0:01:44.1]} 20. Re1 {[%clk 0:02:16.9]} 20... Qd6
{[%clk 0:01:39.3]} 21. g3 {[%clk 0:02:15.1]} 21... b6 {[%clk 0:01:28.1]} 22.
Bc4+ {[%clk 0:02:13.5]} 22... Kh8 {[%clk 0:01:25.2]} 23. Ne4 {[%clk 0:02:13.7]}
23... Qc6 {[%clk 0:01:14.2]} 24. Qb3 {[%clk 0:02:13.1]} 24... Bb7 {[%clk
0:01:07.5]} 25. h3 {[%clk 0:02:13.4]} 25... Nh6 {[%clk 0:00:58.9]} 26. Rhg1
{[%clk 0:02:09.5]} 26... Rae8 {[%clk 0:00:55.4]} 27. Nc3 {[%clk 0:02:09.3]}
27... Rxe1+ {[%clk 0:00:41.6]} 28. Rxe1 {[%clk 0:02:08.9]} 28... a6 {[%clk
0:00:41.7]} 29. Bd5 {[%clk 0:02:08.4]} 29... Qc5 {[%clk 0:00:31.5]} 30. Bxb7
{[%clk 0:02:08.4]} 30... Qf2 {[%clk 0:00:31.4]} 31. Rd1 {[%clk 0:02:03]} 31...
Qxg3 {[%clk 0:00:29.6]} 32. Qc4 {[%clk 0:01:59.2]} 32... Nf5 {[%clk 0:00:24]}
33. Qxc7 {[%clk 0:01:48.5]} 33... Ne3 {[%clk 0:00:21.9]} 34. Qd6 {[%clk
0:01:45]} 34... Rg8 {[%clk 0:00:19.9]} 35. Rd3 {[%clk 0:01:39.6]} 35... Qe1+
{[%clk 0:00:18.4]} 36. Nd1 {[%clk 0:01:39.6]} 36... Qe2 {[%clk 0:00:17.7]} 37.
Rxe3 {[%clk 0:01:33.8]} 1-0

[Event "Early-Titled-Tuesday-Blitz-March-05-2024"]
[Site "Chess.com"]
[Date "2024.03.05"]
[Round "5"]
[White "oneshot007"]
[Black "wannabe2700"]
[Result "0-1"]
[WhiteElo "2556"]
[BlackElo "2766"]
[TimeControl "180+1"]
[EndTime "8:56:33 PST"]
[Termination "wannabe2700 won by resignation"]

1. e4 {[%clk 0:03:00.9]} 1... c5 {[%clk 0:02:59.8]} 2. Nf3 {[%clk 0:03:01.3]}
2... e6 {[%clk 0:03:00]} 3. d4 {[%clk 0:03:01.2]} 3... cxd4 {[%clk 0:03:00.9]}
4. Nxd4 {[%clk 0:03:02.1]} 4... Nf6 {[%clk 0:03:00]} 5. Nc3 {[%clk 0:03:02.3]}
5... Nc6 {[%clk 0:03:00.5]} 6. Nxc6 {[%clk 0:03:02]} 6... bxc6 {[%clk
0:03:01.4]} 7. e5 {[%clk 0:03:02.4]} 7... Nd5 {[%clk 0:03:01.6]} 8. Ne4 {[%clk
0:03:03]} 8... Bb7 {[%clk 0:03:01.9]} 9. c4 {[%clk 0:02:55.9]} 9... Nb4 {[%clk
0:03:01.7]} 10. c5 {[%clk 0:02:54.5]} 10... Qb8 {[%clk 0:02:58.8]} 11. f4 {[%clk
0:02:30.3]} 11... Ba6 {[%clk 0:02:51.2]} 12. Bxa6 {[%clk 0:02:26]} 12... Nxa6
{[%clk 0:02:52.1]} 13. O-O {[%clk 0:02:25.7]} 13... Nxc5 {[%clk 0:02:49.5]} 14.
Nxc5 {[%clk 0:02:22.6]} 14... Bxc5+ {[%clk 0:02:49.3]} 15. Kh1 {[%clk
0:02:23.5]} 15... O-O {[%clk 0:02:49.2]} 16. Qxd7 {[%clk 0:02:22.9]} 16... Qb5
{[%clk 0:02:42.7]} 17. Rd1 {[%clk 0:02:14.7]} 17... Bb6 {[%clk 0:02:33.4]} 18.
a4 {[%clk 0:02:06.9]} 18... Qc5 {[%clk 0:02:11.5]} 19. b4 {[%clk 0:01:45.3]}
19... Qc4 {[%clk 0:01:53.6]} 20. Bd2 {[%clk 0:00:55.7]} 20... Rfd8 {[%clk
0:01:49.4]} 21. Qe7 {[%clk 0:00:55.9]} 21... Qe2 {[%clk 0:01:43.7]} 22. Qb7
{[%clk 0:00:17.2]} 22... Rab8 {[%clk 0:01:43]} 23. Qxc6 {[%clk 0:00:17.5]} 23...
Rxd2 {[%clk 0:01:40.9]} 24. Rxd2 {[%clk 0:00:17.9]} 24... Qxd2 {[%clk
0:01:41.8]} 25. a5 {[%clk 0:00:18.7]} 25... Bd4 {[%clk 0:01:26.2]} 26. Qd6
{[%clk 0:00:10.8]} 26... Qxb4 {[%clk 0:01:22.4]} 0-1

[Event "Early-Titled-Tuesday-Blitz-March-05-2024"]
[Site "Chess.com"]
[Date "2024.03.05"]
[Round "5"]
[White "ContrVersia"]
[Black "Titus369"]
[Result "1-0"]
[WhiteElo "2874"]
[BlackElo "2640"]
[TimeControl "180+1"]
[EndTime "8:56:36 PST"]
[Termination "ContrVersia won on time"]

1. d4 {[%clk 0:03:00.9]} 1... d5 {[%clk 0:02:58]} 2. c4 {[%clk 0:03:01.2]} 2...
e6 {[%clk 0:02:57.4]} 3. Nf3 {[%clk 0:03:01.4]} 3... Nf6 {[%clk 0:02:57.5]} 4.
g3 {[%clk 0:03:01.7]} 4... Be7 {[%clk 0:02:57.4]} 5. Bg2 {[%clk 0:03:01.9]} 5...
O-O {[%clk 0:02:58.2]} 6. O-O {[%clk 0:03:02.8]} 6... dxc4 {[%clk 0:02:58.7]} 7.
Ne5 {[%clk 0:03:03.1]} 7... Qd6 {[%clk 0:02:57.1]} 8. Na3 {[%clk 0:03:02.6]}
8... Rd8 {[%clk 0:02:52.8]} 9. Naxc4 {[%clk 0:03:02.8]} 9... Qxd4 {[%clk
0:02:51.2]} 10. Qc2 {[%clk 0:03:03.1]} 10... Nd5 {[%clk 0:02:30.1]} 11. a3
{[%clk 0:02:51]} 11... a5 {[%clk 0:02:03.8]} 12. e4 {[%clk 0:02:38.5]} 12... b5
{[%clk 0:01:12.3]} 13. exd5 {[%clk 0:02:36.2]} 13... bxc4 {[%clk 0:01:03.7]} 14.
dxe6 {[%clk 0:02:30.7]} 14... Bxe6 {[%clk 0:00:58.5]} 15. Bxa8 {[%clk
0:02:16.6]} 15... Qxe5 {[%clk 0:00:55.7]} 16. Bf4 {[%clk 0:02:16.6]} 16... Qc5
{[%clk 0:00:51.2]} 17. Be4 {[%clk 0:02:13.1]} 17... h6 {[%clk 0:00:44.2]} 18.
Rad1 {[%clk 0:02:11.9]} 18... Nd7 {[%clk 0:00:40.1]} 19. Be3 {[%clk 0:02:08.5]}
19... Qb5 {[%clk 0:00:29.4]} 20. a4 {[%clk 0:02:05.1]} 20... Qh5 {[%clk
0:00:23.6]} 21. f4 {[%clk 0:02:04.9]} 21... Bh3 {[%clk 0:00:22.1]} 22. Rfe1
{[%clk 0:02:03.6]} 22... Rb8 {[%clk 0:00:15.4]} 23. Bd4 {[%clk 0:01:46.2]} 23...
Bb4 {[%clk 0:00:14.2]} 24. Bc3 {[%clk 0:01:41.9]} 24... Bc5+ {[%clk 0:00:14]}
25. Kh1 {[%clk 0:01:42.4]} 25... Bg4 {[%clk 0:00:12]} 26. Rd5 {[%clk 0:01:42.4]}
26... Bf3+ {[%clk 0:00:05]} 27. Bxf3 {[%clk 0:01:42.5]} 27... Qxf3+ {[%clk
0:00:05.2]} 28. Qg2 {[%clk 0:01:43.4]} 28... Qxg2+ {[%clk 0:00:03.3]} 29. Kxg2
{[%clk 0:01:44.3]} 29... Bd6 {[%clk 0:00:03.8]} 30. Rxa5 {[%clk 0:01:43.7]}
30... Nb6 {[%clk 0:00:03.3]} 31. Rb5 {[%clk 0:01:43]} 31... Ra8 {[%clk
0:00:02.7]} 32. a5 {[%clk 0:01:43.1]} 32... Nd7 {[%clk 0:00:01.5]} 33. Ra1
{[%clk 0:01:41.4]} 33... Nc5 {[%clk 0:00:01.6]} 34. Ra2 {[%clk 0:01:36.9]} 1-0

[Event "Early-Titled-Tuesday-Blitz-March-05-2024"]
[Site "Chess.com"]
[Date "2024.03.05"]
[Round "5"]
[White "AsaHoffmann"]
[Black "LuisFSiles"]
[Result "1-0"]
[WhiteElo "2425"]
[BlackElo "2251"]
[TimeControl "180+1"]
[EndTime "8:56:36 PST"]
[Termination "AsaHoffmann won on time"]

1. d4 {[%clk 0:02:59.8]} 1... Nf6 {[%clk 0:02:59.6]} 2. Bg5 {[%clk 0:02:55.4]}
2... Ne4 {[%clk 0:02:57.3]} 3. Bf4 {[%clk 0:02:51.8]} 3... e6 {[%clk 0:02:55.1]}
4. Nd2 {[%clk 0:02:49.5]} 4... Bd6 {[%clk 0:02:48.2]} 5. Bxd6 {[%clk 0:02:45.1]}
5... Nxd6 {[%clk 0:02:42.5]} 6. e4 {[%clk 0:02:44.8]} 6... f5 {[%clk 0:02:41.5]}
7. e5 {[%clk 0:02:42.8]} 7... Nf7 {[%clk 0:02:41.5]} 8. Ngf3 {[%clk 0:02:42.2]}
8... b6 {[%clk 0:02:39.7]} 9. c4 {[%clk 0:02:39.5]} 9... Bb7 {[%clk 0:02:39]}
10. Bd3 {[%clk 0:02:34.2]} 10... O-O {[%clk 0:02:38.4]} 11. Qc2 {[%clk
0:02:33.6]} 11... Nc6 {[%clk 0:02:36.5]} 12. a3 {[%clk 0:02:33.1]} 12... Ng5
{[%clk 0:02:17.5]} 13. O-O-O {[%clk 0:02:29.5]} 13... Nxf3 {[%clk 0:02:09]} 14.
Nxf3 {[%clk 0:02:29.1]} 14... Ne7 {[%clk 0:02:08.3]} 15. Qe2 {[%clk 0:02:20.1]}
15... Ng6 {[%clk 0:01:58.7]} 16. g3 {[%clk 0:02:18.8]} 16... f4 {[%clk
0:01:52.5]} 17. g4 {[%clk 0:02:16.2]} 17... Nh4 {[%clk 0:01:39.7]} 18. Be4
{[%clk 0:02:13.8]} 18... Bxe4 {[%clk 0:01:36.2]} 19. Qxe4 {[%clk 0:02:13.6]}
19... Nxf3 {[%clk 0:01:36.5]} 20. Qxf3 {[%clk 0:02:13.4]} 20... c6 {[%clk
0:01:24.3]} 21. h4 {[%clk 0:02:12.5]} 21... a6 {[%clk 0:01:24.4]} 22. d5 {[%clk
0:02:12.2]} 22... cxd5 {[%clk 0:01:22.9]} 23. cxd5 {[%clk 0:02:12.3]} 23... Qc7+
{[%clk 0:01:23]} 24. Kb1 {[%clk 0:02:11.4]} 24... Qxe5 {[%clk 0:01:23.1]} 25.
Rhe1 {[%clk 0:02:09.6]} 25... Qf6 {[%clk 0:01:21.5]} 26. g5 {[%clk 0:02:06.3]}
26... Qf5+ {[%clk 0:01:20.4]} 27. Ka1 {[%clk 0:02:06.1]} 27... Rac8 {[%clk
0:01:19.8]} 28. dxe6 {[%clk 0:01:59.9]} 28... dxe6 {[%clk 0:01:19.6]} 29. Qb7
{[%clk 0:01:56.8]} 29... Rb8 {[%clk 0:00:46.5]} 30. Qxa6 {[%clk 0:01:55.5]}
30... e5 {[%clk 0:00:41.9]} 31. Qb5 {[%clk 0:01:52.6]} 31... Rfe8 {[%clk
0:00:26.9]} 32. Rd5 {[%clk 0:01:47.4]} 32... Qc2 {[%clk 0:00:14.2]} 33. Rdxe5
{[%clk 0:01:44.5]} 33... Rxe5 {[%clk 0:00:11.7]} 34. Qxe5 {[%clk 0:01:44.1]}
34... Rc8 {[%clk 0:00:07.7]} 35. Qxf4 {[%clk 0:01:38.4]} 1-0

[Event "Early-Titled-Tuesday-Blitz-March-05-2024"]
[Site "Chess.com"]
[Date "2024.03.05"]
[Round "5"]
[White "aridannie"]
[Black "Dale"]
[Result "1-0"]
[WhiteElo "2364"]
[BlackElo "2098"]
[TimeControl "180+1"]
[EndTime "8:56:42 PST"]
[Termination "aridannie won on time"]

1. c4 {[%clk 0:03:00.9]} 1... a6 {[%clk 0:02:33.2]} 2. d4 {[%clk 0:02:57]} 2...
g6 {[%clk 0:02:30]} 3. g3 {[%clk 0:02:54.3]} 3... d6 {[%clk 0:02:27.4]} 4. Bg2
{[%clk 0:02:53.8]} 4... h5 {[%clk 0:02:24.8]} 5. h4 {[%clk 0:02:51.6]} 5... Nh6
{[%clk 0:02:19.6]} 6. Nc3 {[%clk 0:02:50]} 6... Nc6 {[%clk 0:02:12.6]} 7. Nf3
{[%clk 0:02:48.3]} 7... Bd7 {[%clk 0:02:01.6]} 8. Bg5 {[%clk 0:02:45.7]} 8... f6
{[%clk 0:01:59.6]} 9. Bd2 {[%clk 0:02:29.2]} 9... Nf7 {[%clk 0:01:58.1]} 10. Qc2
{[%clk 0:02:20]} 10... Bf5 {[%clk 0:01:44.6]} 11. e4 {[%clk 0:02:18.6]} 11...
Bd7 {[%clk 0:01:36.7]} 12. a3 {[%clk 0:02:09.4]} 12... e5 {[%clk 0:01:35.2]} 13.
Be3 {[%clk 0:02:05.8]} 13... g5 {[%clk 0:01:22.9]} 14. hxg5 {[%clk 0:02:03]}
14... fxg5 {[%clk 0:01:22.4]} 15. d5 {[%clk 0:01:59.9]} 15... Na5 {[%clk
0:01:15.8]} 16. Ne2 {[%clk 0:01:35.4]} 16... c5 {[%clk 0:01:09.1]} 17. b4 {[%clk
0:01:31.3]} 17... cxb4 {[%clk 0:00:59.5]} 18. axb4 {[%clk 0:01:31.4]} 18... Nxc4
{[%clk 0:00:57.7]} 19. Qxc4 {[%clk 0:01:30.9]} 19... Rc8 {[%clk 0:00:43.5]} 20.
Qb3 {[%clk 0:01:27.8]} 20... Bb5 {[%clk 0:00:38.5]} 21. Qb2 {[%clk 0:01:26]}
21... g4 {[%clk 0:00:33]} 22. Nh4 {[%clk 0:01:24.6]} 22... Rg8 {[%clk
0:00:26.9]} 23. Nf5 {[%clk 0:01:23.2]} 23... Ng5 {[%clk 0:00:13.7]} 24. Bxg5
{[%clk 0:01:20.5]} 24... Qxg5 {[%clk 0:00:10.7]} 25. Rc1 {[%clk 0:01:17.8]}
25... Rxc1+ {[%clk 0:00:06.7]} 26. Qxc1 {[%clk 0:01:18.2]} 26... Qxc1+ {[%clk
0:00:04.4]} 27. Nxc1 {[%clk 0:01:19.1]} 27... Kd7 {[%clk 0:00:02.6]} 28. Rxh5
{[%clk 0:01:17.5]} 1-0

[Event "Early-Titled-Tuesday-Blitz-March-05-2024"]
[Site "Chess.com"]
[Date "2024.03.05"]
[Round "5"]
[White "PeshkaCh"]
[Black "Practical-Play"]
[Result "1-0"]
[WhiteElo "2828"]
[BlackElo "2521"]
[TimeControl "180+1"]
[EndTime "8:56:45 PST"]
[Termination "PeshkaCh won by checkmate"]

1. e4 {[%clk 0:03:00.9]} 1... c5 {[%clk 0:02:51.7]} 2. b3 {[%clk 0:03:01.1]}
2... Nc6 {[%clk 0:02:44.5]} 3. Bb2 {[%clk 0:03:01.3]} 3... d6 {[%clk 0:02:45]}
4. Bb5 {[%clk 0:03:01]} 4... Bd7 {[%clk 0:02:38.2]} 5. f4 {[%clk 0:03:01.1]}
5... a6 {[%clk 0:02:38.5]} 6. Bxc6 {[%clk 0:03:01.1]} 6... Bxc6 {[%clk
0:02:39.4]} 7. Nc3 {[%clk 0:03:01.3]} 7... Nf6 {[%clk 0:02:34]} 8. Qe2 {[%clk
0:03:01.8]} 8... e6 {[%clk 0:02:32.5]} 9. O-O-O {[%clk 0:03:01.8]} 9... b5
{[%clk 0:02:30.2]} 10. e5 {[%clk 0:02:49.1]} 10... dxe5 {[%clk 0:02:06.6]} 11.
fxe5 {[%clk 0:02:50]} 11... Nd5 {[%clk 0:01:54.2]} 12. Ne4 {[%clk 0:02:50.4]}
12... Qa5 {[%clk 0:01:38.3]} 13. Rf1 {[%clk 0:02:26]} 13... Qxa2 {[%clk
0:01:26.9]} 14. Qf3 {[%clk 0:02:23]} 14... Ra7 {[%clk 0:01:25.9]} 15. Nd6+
{[%clk 0:02:10.6]} 15... Kd8 {[%clk 0:00:54.9]} 16. Ne2 {[%clk 0:01:37.1]} 16...
f6 {[%clk 0:00:16]} 17. Nc3 {[%clk 0:01:12.7]} 17... Nxc3 {[%clk 0:00:10.5]} 18.
Qxc3 {[%clk 0:01:13.6]} 18... Bd5 {[%clk 0:00:07]} 19. Qxc5 {[%clk 0:00:58.9]}
19... Rc7 {[%clk 0:00:06.8]} 20. Qb6 {[%clk 0:00:59.5]} 20... Bxb3 {[%clk
0:00:02.9]} 21. Qb8+ {[%clk 0:00:59.5]} 21... Kd7 {[%clk 0:00:02.8]} 22. Qe8#
{[%clk 0:00:59.8]} 1-0

[Event "Early-Titled-Tuesday-Blitz-March-05-2024"]
[Site "Chess.com"]
[Date "2024.03.05"]
[Round "5"]
[White "shirovin"]
[Black "EvgenyBurmakin"]
[Result "0-1"]
[WhiteElo "2068"]
[BlackElo "2349"]
[TimeControl "180+1"]
[EndTime "8:56:48 PST"]
[Termination "EvgenyBurmakin won by resignation"]

1. e4 {[%clk 0:03:00.9]} 1... c5 {[%clk 0:02:58.8]} 2. Nf3 {[%clk 0:02:59.9]}
2... d6 {[%clk 0:02:58.9]} 3. d4 {[%clk 0:02:57.4]} 3... cxd4 {[%clk 0:02:59.8]}
4. Nxd4 {[%clk 0:02:57.3]} 4... Nf6 {[%clk 0:03:00.3]} 5. Nc3 {[%clk 0:02:57.7]}
5... a6 {[%clk 0:03:00.7]} 6. Bg5 {[%clk 0:02:55.8]} 6... e6 {[%clk 0:02:56.3]}
7. f4 {[%clk 0:02:55.3]} 7... Nbd7 {[%clk 0:02:45.2]} 8. Qf3 {[%clk 0:02:53.6]}
8... Qc7 {[%clk 0:02:39.9]} 9. O-O-O {[%clk 0:02:52.2]} 9... Be7 {[%clk
0:02:39.9]} 10. g4 {[%clk 0:02:48.9]} 10... h6 {[%clk 0:02:34.9]} 11. Bxf6
{[%clk 0:02:46.4]} 11... Bxf6 {[%clk 0:02:28.9]} 12. h4 {[%clk 0:02:46.6]} 12...
b5 {[%clk 0:02:03.6]} 13. g5 {[%clk 0:02:39.7]} 13... hxg5 {[%clk 0:02:00.1]}
14. hxg5 {[%clk 0:02:39.2]} 14... Rxh1 {[%clk 0:01:52.7]} 15. Qxh1 {[%clk
0:02:31.3]} 15... Be7 {[%clk 0:01:51.8]} 16. f5 {[%clk 0:02:14.4]} 16... Bxg5+
{[%clk 0:01:48.5]} 17. Kb1 {[%clk 0:02:13]} 17... Nf8 {[%clk 0:01:36.2]} 18. Bh3
{[%clk 0:02:07]} 18... b4 {[%clk 0:01:27.2]} 19. Nce2 {[%clk 0:01:45.8]} 19...
e5 {[%clk 0:01:18.8]} 20. Nf3 {[%clk 0:01:41]} 20... Be3 {[%clk 0:01:17.6]} 21.
Qg2 {[%clk 0:01:29.5]} 21... Bb7 {[%clk 0:01:08.1]} 22. Nd2 {[%clk 0:01:02.3]}
22... f6 {[%clk 0:01:02.7]} 23. Nf1 {[%clk 0:00:50.8]} 23... Bh6 {[%clk
0:00:59.9]} 24. Neg3 {[%clk 0:00:48.6]} 24... O-O-O {[%clk 0:00:57.8]} 25. Nh5
{[%clk 0:00:47.3]} 25... Nh7 {[%clk 0:00:46.4]} 26. Qd2 {[%clk 0:00:37.1]} 26...
Bxd2 {[%clk 0:00:45.2]} 0-1

[Event "Early-Titled-Tuesday-Blitz-March-05-2024"]
[Site "Chess.com"]
[Date "2024.03.05"]
[Round "5"]
[White "elmusmolamas"]
[Black "dealshark"]
[Result "1-0"]
[WhiteElo "2509"]
[BlackElo "2314"]
[TimeControl "180+1"]
[EndTime "8:56:50 PST"]
[Termination "elmusmolamas won by resignation"]

1. e4 {[%clk 0:02:57.4]} 1... c6 {[%clk 0:02:59.9]} 2. c4 {[%clk 0:02:52.2]}
2... d5 {[%clk 0:02:59.3]} 3. cxd5 {[%clk 0:02:53.1]} 3... cxd5 {[%clk
0:02:59.9]} 4. exd5 {[%clk 0:02:54]} 4... Nf6 {[%clk 0:03:00.4]} 5. Nf3 {[%clk
0:02:52]} 5... Nxd5 {[%clk 0:03:00.2]} 6. d4 {[%clk 0:02:45.9]} 6... e6 {[%clk
0:03:00.3]} 7. Nc3 {[%clk 0:02:45.1]} 7... Be7 {[%clk 0:02:59.4]} 8. Bd3 {[%clk
0:02:44.4]} 8... O-O {[%clk 0:02:56.3]} 9. O-O {[%clk 0:02:45]} 9... b6 {[%clk
0:02:55.5]} 10. a3 {[%clk 0:02:43.7]} 10... Ba6 {[%clk 0:02:54.8]} 11. Nb5
{[%clk 0:02:34.6]} 11... Nd7 {[%clk 0:02:47.1]} 12. Re1 {[%clk 0:02:27.7]} 12...
Rc8 {[%clk 0:02:45.3]} 13. Qb3 {[%clk 0:02:24]} 13... Bf6 {[%clk 0:02:17.4]} 14.
Bd2 {[%clk 0:02:14]} 14... Bxb5 {[%clk 0:02:03.6]} 15. Bxb5 {[%clk 0:02:07.9]}
15... Qc7 {[%clk 0:01:58.8]} 16. Bd3 {[%clk 0:02:01.4]} 16... Qb7 {[%clk
0:01:55.1]} 17. Rad1 {[%clk 0:01:57]} 17... Rc7 {[%clk 0:01:48]} 18. Bb1 {[%clk
0:01:57.3]} 18... Rd8 {[%clk 0:01:39.2]} 19. Ne5 {[%clk 0:01:52.7]} 19... Bxe5
{[%clk 0:01:33.6]} 20. dxe5 {[%clk 0:01:53.6]} 20... Nf8 {[%clk 0:01:15.7]} 21.
Bg5 {[%clk 0:01:53.7]} 21... Rdc8 {[%clk 0:01:15]} 22. Qg3 {[%clk 0:01:50.7]}
22... Ne7 {[%clk 0:01:05.7]} 23. h4 {[%clk 0:01:44.3]} 23... Rd7 {[%clk
0:01:02.6]} 24. h5 {[%clk 0:01:27.2]} 24... Rcd8 {[%clk 0:00:53.8]} 25. Bf6
{[%clk 0:01:14]} 25... Nfg6 {[%clk 0:00:24.8]} 26. hxg6 {[%clk 0:01:09.1]} 26...
hxg6 {[%clk 0:00:14.4]} 27. Rxd7 {[%clk 0:01:05.5]} 27... Rxd7 {[%clk
0:00:12.8]} 28. Bxe7 {[%clk 0:01:05]} 28... Rd6 {[%clk 0:00:13.3]} 1-0